fUST/lending_fUST_20241108
["ID","MTS","AMOUNT","RATE_DAILY","PERIOD"]
[341646877,1731058244231,-662.8,0.00023835,2]
[341646878,1731058244240,-500.0,0.00023835,2]
[341646879,1731058244250,-500.0,0.00023835,2]
[341646880,1731058244259,-617.82,0.00023835,2]
[341646881,1731058244268,-2356.99,0.00023835,2]
[341646882,1731058244278,-500.0,0.00023835,2]
[341646883,1731058244287,-500.0,0.00023835,2]
[341646884,1731058244297,-500.0,0.00023835,2]
[341646885,1731058244306,-500.0,0.00023835,2]
[341646886,1731058244315,-804.9,0.00023835,2]
[341646887,1731058244326,-3210.27,0.00023835,2]
[341646888,1731058244335,-579.84175013,0.00023835,2]
[341646889,1731058244344,-3186.19,0.00023835,2]
[341646890,1731058244354,-166.666666,0.00023969,2]
[341646891,1731058244363,-12898.90178686,0.00024,2]
[341646892,1731058244373,-520.03,0.00024,2]
[341646893,1731058244382,-161.214,0.00024008,5]
[341646894,1731058244392,-1290.16,0.00024108,2]
[341646895,1731058244401,-1290.16,0.00024108,2]
[341646896,1731058244410,-1290.16,0.00024108,2]
[341646897,1731058244419,-1290.16,0.00024108,2]
[341646898,1731058244429,-1290.16,0.00024108,2]
[341646899,1731058244438,-1290.16117655,0.00024108,2]
[341646900,1731058244447,-500.0,0.00024109,2]
[341646901,1731058244457,-1009.33,0.00024109,2]
[341646902,1731058244467,-500.0,0.00024109,2]
[341646903,1731058244476,-500.0,0.00024109,2]
[341646904,1731058244486,-500.0,0.00024109,2]
[341646905,1731058244495,-894.65,0.00024109,2]
[341646906,1731058244506,-500.0,0.00024109,2]
[341646907,1731058244515,-223.0760377,0.00024109,2]
[341646908,1731058244525,-2111.02,0.00024109,2]
[341646909,1731058244535,-714.74,0.00024109,2]
[341646910,1731058244544,-6939.05,0.00024109,2]
[341646911,1731058244553,-6833.16,0.00024109,2]
[341646912,1731058244562,-662.8,0.00024109,2]
[341646913,1731058244571,-500.0,0.00024109,2]
[341646914,1731058244581,-500.0,0.00024109,2]
[341646915,1731058244591,-617.82,0.00024109,2]
[341646916,1731058244601,-2356.99,0.00024109,2]
[341646917,1731058244610,-500.0,0.00024109,2]
[341646918,1731058244621,-293.640754,0.00024109,2]
[341646919,1731058244630,-500.0,0.00024109,2]
[341646920,1731058244640,-267.58192622,0.00024109,2]
[341646921,1731058244653,-804.9,0.00024109,2]
[341646922,1731058244663,-3210.27,0.00024109,2]
[341646923,1731058244672,-3186.19,0.00024109,2]
[341646924,1731058244682,-475.0,0.00024164,2]
[341646925,1731058244692,-1000.0,0.00024298,2]
[341646926,1731058244701,-500.0,0.00024383,2]
[341646927,1731058244786,-1009.33,0.00024383,2]
[341646928,1731058244804,-500.0,0.00024383,2]
[341646929,1731058244813,-500.0,0.00024383,2]
[341646930,1731058244823,-500.0,0.00024383,2]
[341646931,1731058244832,-894.65,0.00024383,2]
[341646932,1731058244841,-500.0,0.00024383,2]
[341646933,1731058244851,-2111.02,0.00024383,2]
[341646934,1731058244861,-714.74,0.00024383,2]
[341646935,1731058244870,-6939.05,0.00024383,2]
[341646936,1731058244879,-6833.16,0.00024383,2]
[341646937,1731058244889,-662.8,0.00024383,2]
[341646938,1731058244898,-500.0,0.00024383,2]
[341646939,1731058244907,-500.0,0.00024383,2]
[341646940,1731058244916,-617.82,0.00024383,2]
[341646941,1731058244926,-2356.99,0.00024383,2]
[341646942,1731058244935,-500.0,0.00024383,2]
[341646943,1731058244945,-500.0,0.00024383,2]
[341646944,1731058244955,-804.9,0.00024383,2]
[341646945,1731058244965,-3210.27,0.00024383,2]
[341646946,1731058244974,-3186.19,0.00024383,2]
[341646947,1731058244983,-1000.0,0.0002447,2]
[341646948,1731058244993,-1000.0,0.0002447,2]
[341646949,1731058245003,-166.666666,0.00024482,2]
[341646950,1731058245012,-151.0,0.00024655,3]
[341646951,1731058245022,-500.0,0.00024656,2]
[341646952,1731058245031,-392.67515953,0.00024656,2]
[341646953,1731058245040,-500.0,0.00024656,2]
[341646954,1731058245050,-500.0,0.00024656,2]
[341646955,1731058245059,-500.0,0.00024656,2]
[341646956,1731058245069,-500.0,0.00024656,2]
[341646957,1731058245078,-500.0,0.00024656,2]
[341646958,1731058245088,-500.0,0.00024656,2]
[341646959,1731058245098,-500.0,0.00024656,2]
[341646960,1731058245107,-500.0,0.00024656,2]
[341646961,1731058245116,-500.0,0.00024656,2]
[341646962,1731058245127,-500.0,0.00024656,2]
[341646963,1731058245136,-500.0,0.00024656,2]
[341646964,1731058245146,-500.0,0.00024656,2]
[341646965,1731058245155,-256.25721972,0.00024656,2]
[341646966,1731058245165,-500.0,0.00024656,2]
[341646967,1731058245175,-500.0,0.00024656,2]
[341646968,1731058245184,-500.0,0.00024656,2]
[341646969,1731058245194,-530.9419479,0.00024656,2]
[341646970,1731058245206,-500.0,0.00024656,2]
[341646971,1731058245216,-500.0,0.00024656,2]
[341646972,1731058245228,-430.08548621,0.00024656,2]
[341646973,1731058245238,-500.0,0.00024656,2]
[341646974,1731058245248,-514.41940083,0.00024656,2]
[341646975,1731058245258,-316.7023853,0.00024656,2]
[341646976,1731058245269,-500.0,0.00024656,2]
[341646977,1731058245278,-500.0,0.00024656,2]
[341646978,1731058245288,-500.0,0.00024656,2]
[341646979,1731058245297,-500.0,0.00024656,2]
[341646980,1731058245307,-500.0,0.00024656,2]
[341646981,1731058245316,-232.31906624,0.00024656,2]
[341646982,1731058245326,-500.0,0.00024656,2]
[341646983,1731058245335,-500.0,0.00024656,2]
[341646984,1731058245344,-500.0,0.00024656,2]
[341646985,1731058245354,-500.0,0.00024656,2]
[341646986,1731058245363,-500.0,0.00024656,2]
[341646987,1731058245374,-500.0,0.00024656,2]
[341646988,1731058245383,-500.0,0.00024656,2]
[341646989,1731058245392,-500.0,0.00024656,2]
[341646990,1731058245402,-500.0,0.00024656,2]
[341646991,1731058245411,-526.54289564,0.00024656,2]
[341646992,1731058245420,-627.68711973,0.00024656,2]
[341646993,1731058245430,-500.0,0.00024656,2]
[341646994,1731058245439,-500.0,0.00024656,2]
[341646995,1731058245449,-500.0,0.00024656,2]
[341646996,1731058245459,-500.0,0.00024656,2]
[341646997,1731058245469,-500.0,0.00024656,2]
[341646998,1731058245478,-500.0,0.00024656,2]
[341646999,1731058245488,-500.0,0.00024656,2]
[341647000,1731058245498,-500.0,0.00024656,2]
[341647001,1731058245509,-534.05435722,0.00024656,2]
[341647002,1731058245519,-500.0,0.00024656,2]
[341647004,1731058245532,-500.0,0.00024656,2]
[341647006,1731058245542,-509.53399555,0.00024656,2]
[341647007,1731058245552,-672.7,0.00024656,2]
[341647008,1731058245562,-640.39138322,0.00024656,2]
[341647009,1731058245571,-500.0,0.00024656,2]
[341647010,1731058245582,-500.0,0.00024656,2]
[341647011,1731058245591,-500.0,0.00024656,2]
[341647012,1731058245600,-500.0,0.00024656,2]
[341647013,1731058245610,-500.0,0.00024656,2]
[341647014,1731058245620,-386.26773954,0.00024656,2]
[341647015,1731058245630,-500.0,0.00024656,2]
[341647016,1731058245639,-500.0,0.00024656,2]
[341647017,1731058245648,-500.0,0.00024656,2]
[341647018,1731058245661,-588.39811047,0.00024656,2]
[341647019,1731058245671,-500.0,0.00024656,2]
[341647020,1731058245680,-500.0,0.00024656,2]
[341647021,1731058245689,-502.30462674,0.00024656,2]
[341647022,1731058245698,-500.0,0.00024656,2]
[341647023,1731058245707,-500.0,0.00024656,2]
[341647024,1731058245716,-597.24545072,0.00024656,2]
[341647025,1731058245725,-500.0,0.00024656,2]
[341647026,1731058245734,-500.0,0.00024656,2]
[341647027,1731058245744,-500.0,0.00024656,2]
[341647028,1731058245753,-500.0,0.00024656,2]
[341647029,1731058245763,-500.0,0.00024656,2]
[341647030,1731058245773,-349.66560353,0.00024656,2]
[341647031,1731058245782,-500.0,0.00024656,2]
[341647032,1731058245792,-230.34199532,0.00024656,2]
[341647033,1731058245801,-500.0,0.00024656,2]
[341647034,1731058245810,-500.0,0.00024656,2]
[341647035,1731058245820,-500.0,0.00024656,2]
[341647036,1731058245830,-500.0,0.00024656,2]
[341647037,1731058245840,-576.3781736,0.00024656,2]
[341647038,1731058245849,-500.0,0.00024656,2]
[341647039,1731058245858,-500.0,0.00024657,2]
[341647040,1731058245869,-1009.33,0.00024657,2]
[341647041,1731058245879,-500.0,0.00024657,2]
[341647042,1731058245888,-500.0,0.00024657,2]
[341647043,1731058245897,-500.0,0.00024657,2]
[341647044,1731058245907,-894.65,0.00024657,2]
[341647045,1731058245916,-500.0,0.00024657,2]
[341647046,1731058245925,-500.0,0.00024657,2]
[341647047,1731058245935,-2111.02,0.00024657,2]
[341647048,1731058245944,-714.74,0.00024657,2]
[341647049,1731058245953,-6939.05,0.00024657,2]
[341647050,1731058245963,-6833.16,0.00024657,2]
[341647052,1731058245973,-662.8,0.00024657,2]
[341647053,1731058245983,-500.0,0.00024657,2]
[341647055,1731058245994,-500.0,0.00024657,2]
[341647056,1731058246004,-500.0,0.00024657,2]
[341647057,1731058246014,-617.82,0.00024657,2]
[341647058,1731058246023,-2356.99,0.00024657,2]
[341647060,1731058246034,-500.0,0.00024657,2]
[341647062,1731058246044,-500.0,0.00024657,2]
[341647063,1731058246054,-804.9,0.00024657,2]
[341647064,1731058246065,-3210.27,0.00024657,2]
[341647065,1731058246075,-3186.19,0.00024657,2]
[341647066,1731058246084,-150.0,0.00024658,2]
[341647067,1731058246094,-436.00755021,0.00024658,2]
[341647068,1731058246104,-500.0,0.00024658,2]
[341647069,1731058246113,-580.18659906,0.00024658,2]
[341647070,1731058246123,-785.36889013,0.00024671,2]
[341647071,1731058246134,-174.94335256,0.00024699,2]
[341647072,1731058246143,-55447.92590772,0.000249,3]
[341647073,1731058246154,-500.0,0.0002493,2]
[341647074,1731058246165,-500.0,0.0002493,2]
[341647075,1731058246174,-500.0,0.0002493,2]
[341647076,1731058246184,-485.91707152,0.0002493,2]
[341647077,1731058246193,-500.0,0.0002493,2]
[341647078,1731058246204,-500.0,0.0002493,2]
[341647079,1731058246213,-500.0,0.0002493,2]
[341647080,1731058246223,-529.56547606,0.0002493,2]
[341647081,1731058246233,-500.0,0.0002493,2]
[341647082,1731058246243,-500.0,0.0002493,2]
[341647083,1731058246253,-500.0,0.0002493,2]
[341647084,1731058246264,-500.0,0.0002493,2]
[341647085,1731058246274,-500.0,0.0002493,2]
[341647086,1731058246284,-163.53043629,0.0002493,2]
[341647087,1731058246295,-500.0,0.0002493,2]
[341647088,1731058246305,-500.0,0.0002493,2]
[341647089,1731058246315,-500.0,0.0002493,2]
[341647090,1731058246325,-500.0,0.0002493,2]
[341647091,1731058246335,-500.0,0.0002493,2]
[341647092,1731058246344,-500.0,0.0002493,2]
[341647093,1731058246354,-592.29027667,0.0002493,2]
[341647094,1731058246364,-500.0,0.0002493,2]
[341647095,1731058246375,-581.74421242,0.0002493,2]
[341647096,1731058246388,-500.0,0.0002493,2]
[341647097,1731058246398,-500.0,0.0002493,2]
[341647098,1731058246409,-672.7,0.0002493,2]
[341647099,1731058246419,-500.0,0.0002493,2]
[341647100,1731058246428,-500.0,0.0002493,2]
[341647101,1731058246439,-487.27084624,0.0002493,2]
[341647102,1731058246448,-500.0,0.0002493,2]
[341647103,1731058246458,-500.0,0.0002493,2]
[341647104,1731058246468,-500.0,0.0002493,2]
[341647105,1731058246477,-500.0,0.0002493,2]
[341647106,1731058246486,-500.0,0.0002493,2]
[341647107,1731058246495,-500.0,0.0002493,2]
[341647108,1731058246504,-507.95479792,0.0002493,2]
[341647109,1731058246514,-500.0,0.0002493,2]
[341647110,1731058246524,-500.0,0.0002493,2]
[341647111,1731058246534,-500.0,0.0002493,2]
[341647112,1731058246543,-500.0,0.0002493,2]
[341647113,1731058246553,-500.0,0.0002493,2]
[341647114,1731058246562,-544.36671135,0.0002493,2]
[341647115,1731058246572,-500.0,0.0002493,2]
[341647116,1731058246582,-500.0,0.0002493,2]
[341647117,1731058246591,-500.0,0.0002493,2]
[341647118,1731058246602,-500.0,0.0002493,2]
[341647119,1731058246613,-500.0,0.0002493,2]
[341647120,1731058246624,-500.0,0.0002493,2]
[341647121,1731058246634,-500.0,0.00024931,2]
[341647122,1731058246645,-1009.33,0.00024931,2]
[341647123,1731058246658,-500.0,0.00024931,2]
[341647124,1731058246667,-500.0,0.00024931,2]
[341647125,1731058246677,-500.0,0.00024931,2]
[341647126,1731058246687,-894.65,0.00024931,2]
[341647127,1731058246697,-500.0,0.00024931,2]
[341647128,1731058246708,-2111.02,0.00024931,2]
[341647129,1731058246718,-714.74,0.00024931,2]
[341647130,1731058246727,-6939.05,0.00024931,2]
[341647131,1731058246738,-6833.16,0.00024931,2]
[341647132,1731058246748,-662.8,0.00024931,2]
[341647133,1731058246758,-500.0,0.00024931,2]
[341647134,1731058246767,-500.0,0.00024931,2]
[341647135,1731058246777,-617.82,0.00024931,2]
[341647136,1731058246786,-2356.99,0.00024931,2]
[341647137,1731058246796,-500.0,0.00024931,2]
[341647138,1731058246805,-500.0,0.00024931,2]
[341647139,1731058246815,-804.9,0.00024931,2]
[341647140,1731058246824,-3210.27,0.00024931,2]
[341647141,1731058246834,-3186.19,0.00024931,2]
[341647142,1731058246843,-658.45018768,0.00024999,2]
[341647143,1731058246853,-1504.18669585,0.00025,2]
[341647144,1731058246862,-151.0,0.00025,7]
[341647145,1731058246873,-364.400776,0.00025,7]
[341647146,1731058246883,-364.400776,0.00025,7]
[341647147,1731058246892,-151.0,0.00025,7]
[341647148,1731058246985,-151.0,0.00025,7]
[341647149,1731058246995,-2541.49719164,0.00025104,2]
[341647150,1731058247004,-162.57509,0.00025156,2]
[341647151,1731058247013,-500.0,0.00025204,2]
[341647152,1731058247023,-500.0,0.00025204,2]
[341647153,1731058247032,-500.0,0.00025204,2]
[341647154,1731058247042,-500.0,0.00025204,2]
[341647155,1731058247051,-500.0,0.00025204,2]
[341647156,1731058247060,-500.0,0.00025204,2]
[341647157,1731058247069,-500.0,0.00025204,2]
[341647158,1731058247078,-323.85834511,0.00025204,2]
[341647159,1731058247087,-500.0,0.00025204,2]
[341647160,1731058247097,-500.0,0.00025204,2]
[341647161,1731058247106,-500.0,0.00025204,2]
[341647162,1731058247115,-500.0,0.00025204,2]
[341647163,1731058247125,-500.0,0.00025204,2]
[341647164,1731058247134,-500.0,0.00025204,2]
[341647165,1731058247144,-500.0,0.00025204,2]
[341647166,1731058247152,-500.0,0.00025204,2]
[341647167,1731058247162,-500.0,0.00025204,2]
[341647168,1731058247171,-500.0,0.00025204,2]
[341647169,1731058247180,-500.0,0.00025204,2]
[341647170,1731058247189,-672.7,0.00025204,2]
[341647171,1731058247199,-500.0,0.00025204,2]
[341647172,1731058247208,-500.0,0.00025204,2]
[341647173,1731058247217,-617.53453115,0.00025204,2]
[341647174,1731058247226,-500.0,0.00025204,2]
[341647175,1731058247235,-500.0,0.00025204,2]
[341647176,1731058247245,-500.0,0.00025204,2]
[341647177,1731058247255,-500.0,0.00025204,2]
[341647178,1731058247263,-500.0,0.00025204,2]
[341647179,1731058247272,-500.0,0.00025204,2]
[341647180,1731058247282,-500.0,0.00025204,2]
[341647181,1731058247291,-500.0,0.00025204,2]
[341647182,1731058247300,-430.11521447,0.00025204,2]
[341647183,1731058247309,-537.79849841,0.00025204,2]
[341647184,1731058247319,-500.0,0.00025204,2]
[341647185,1731058247328,-500.0,0.00025204,2]
[341647186,1731058247337,-500.0,0.00025204,2]
[341647187,1731058247347,-500.0,0.00025204,2]
[341647188,1731058247356,-500.0,0.00025204,2]
[341647189,1731058247365,-500.0,0.00025204,2]
[341647190,1731058247376,-500.0,0.00025205,2]
[341647191,1731058247385,-1009.33,0.00025205,2]
[341647192,1731058247395,-500.0,0.00025205,2]
[341647193,1731058247404,-500.0,0.00025205,2]
[341647194,1731058247413,-500.0,0.00025205,2]
[341647195,1731058247423,-894.65,0.00025205,2]
[341647196,1731058247432,-500.0,0.00025205,2]
[341647197,1731058247441,-2111.02,0.00025205,2]
[341647198,1731058247450,-714.74,0.00025205,2]
[341647199,1731058247460,-6939.05,0.00025205,2]
[341647200,1731058247469,-151.0,0.00025205,3]
[341647201,1731058247478,-6833.16,0.00025205,2]
[341647202,1731058247487,-662.8,0.00025205,2]
[341647203,1731058247496,-500.0,0.00025205,2]
[341647204,1731058247505,-500.0,0.00025205,2]
[341647205,1731058247515,-617.82,0.00025205,2]
[341647206,1731058247524,-2356.99,0.00025205,2]
[341647207,1731058247533,-500.0,0.00025205,2]
[341647208,1731058247543,-500.0,0.00025205,2]
[341647209,1731058247552,-804.9,0.00025205,2]
[341647210,1731058247562,-3210.27,0.00025205,2]
[341647211,1731058247571,-3186.19,0.00025205,2]
[341647212,1731058247580,-500.0,0.00025342,2]
[341647213,1731058247589,-505.912719,0.00025342,2]
[341647214,1731058247598,-500.0,0.00025478,2]
[341647215,1731058247607,-500.0,0.00025478,2]
[341647216,1731058247617,-500.0,0.00025478,2]
[341647217,1731058247629,-270.13826624,0.00025478,2]
[341647218,1731058247638,-500.0,0.00025478,2]
[341647219,1731058247647,-500.0,0.00025478,2]
[341647220,1731058247659,-500.0,0.00025478,2]
[341647221,1731058247668,-500.0,0.00025478,2]
[341647222,1731058247676,-500.0,0.00025478,2]
[341647223,1731058247686,-500.0,0.00025478,2]
[341647224,1731058247695,-500.0,0.00025478,2]
[341647225,1731058247704,-500.0,0.00025478,2]
[341647226,1731058247713,-500.0,0.00025478,2]
[341647227,1731058247722,-500.0,0.00025478,2]
[341647228,1731058247731,-500.0,0.00025478,2]
[341647229,1731058247740,-500.0,0.00025478,2]
[341647230,1731058247749,-500.0,0.00025478,2]
[341647231,1731058247758,-672.7,0.00025478,2]
[341647232,1731058247767,-500.0,0.00025478,2]
[341647233,1731058247776,-500.0,0.00025478,2]
[341647234,1731058247785,-500.0,0.00025478,2]
[341647235,1731058247794,-500.0,0.00025478,2]
[341647236,1731058247803,-500.0,0.00025478,2]
[341647237,1731058247811,-500.0,0.00025478,2]
[341647238,1731058247820,-500.0,0.00025478,2]
[341647239,1731058247830,-500.0,0.00025478,2]
[341647240,1731058247839,-500.0,0.00025478,2]
[341647241,1731058247848,-500.0,0.00025478,2]
[341647242,1731058247857,-500.0,0.00025478,2]
[341647243,1731058247866,-500.0,0.00025478,2]
[341647244,1731058247876,-300.20229638,0.00025479,2]
[341647245,1731058247885,-1009.33,0.00025479,2]
[341647246,1731058247894,-623.1111633,0.00025479,2]
[341647247,1731058247903,-500.0,0.00025479,2]
[341647248,1731058247913,-500.0,0.00025479,2]
[341647249,1731058247922,-894.65,0.00025479,2]
[341647250,1731058247931,-500.0,0.00025479,2]
[341647251,1731058247940,-2111.02,0.00025479,2]
[341647252,1731058247949,-714.74,0.00025479,2]
[341647253,1731058247958,-6939.05,0.00025479,2]
[341647254,1731058247967,-6833.16,0.00025479,2]
[341647255,1731058247976,-662.8,0.00025479,2]
[341647256,1731058247985,-500.0,0.00025479,2]
[341647257,1731058247994,-500.0,0.00025479,2]
[341647258,1731058248003,-617.82,0.00025479,2]
[341647259,1731058248012,-1692.92203316,0.00025479,2]
[341647260,1731058248036,-664.06796684,0.00025479,2]
[341647261,1731058248048,-500.0,0.00025479,2]
[341647262,1731058248058,-500.0,0.00025479,2]
[341647263,1731058248067,-804.9,0.00025479,2]
[341647264,1731058248077,-3210.27,0.00025479,2]
[341647265,1731058248086,-3186.19,0.00025479,2]
[341647266,1731058248095,-393.51889527,0.00025505,2]
[341647267,1731058248105,-500.0,0.00025505,2]
[341647268,1731058248114,-465.88670649,0.00025573,2]
[341647269,1731058248123,-600.0,0.00025632,2]
[341647270,1731058248133,-172.63752385,0.00025752,2]
[341647271,1731058248278,-327.36247615,0.00025752,2]
[341647272,1731058248288,-500.0,0.00025752,2]
[341647273,1731058248297,-500.0,0.00025752,2]
[341647274,1731058248306,-500.0,0.00025752,2]
[341647275,1731058248316,-500.0,0.00025752,2]
[341647276,1731058248325,-500.0,0.00025752,2]
[341647277,1731058248334,-500.0,0.00025752,2]
[341647278,1731058248344,-500.0,0.00025752,2]
[341647279,1731058248353,-500.0,0.00025752,2]
[341647280,1731058248362,-500.0,0.00025752,2]
[341647281,1731058248372,-500.0,0.00025752,2]
[341647282,1731058248381,-500.0,0.00025752,2]
[341647283,1731058248390,-500.0,0.00025752,2]
[341647284,1731058248399,-500.0,0.00025752,2]
[341647285,1731058248408,-500.0,0.00025752,2]
[341647286,1731058248417,-672.7,0.00025752,2]
[341647287,1731058248427,-500.0,0.00025752,2]
[341647288,1731058248436,-500.0,0.00025752,2]
[341647289,1731058248445,-500.0,0.00025752,2]
[341647290,1731058248454,-500.0,0.00025752,2]
[341647291,1731058248463,-500.0,0.00025752,2]
[341647292,1731058248473,-412.69663114,0.00025752,2]
[341647293,1731058248835,-87.30336886,0.00025752,2]
[341647294,1731058248845,-500.0,0.00025752,2]
[341647295,1731058248855,-273.92563213,0.00025752,2]
[341647296,1731058248864,-500.0,0.00025752,2]
[341647297,1731058248874,-500.0,0.00025752,2]
[341647298,1731058248884,-500.0,0.00025752,2]
[341647299,1731058248893,-500.0,0.00025752,2]
[341647300,1731058248903,-151.0,0.00025753,7]
[341647301,1731058248912,-364.400776,0.00025753,7]
[341647302,1731058248922,-151.0,0.00025753,7]
[341647303,1731058248931,-151.0,0.00025753,7]
[341647304,1731058248941,-151.0,0.00025753,7]
[341647305,1731058248950,-249.358362,0.00025753,7]
[341647306,1731058248959,-1009.33,0.00025753,2]
[341647307,1731058248968,-500.0,0.00025753,2]
[341647308,1731058248977,-500.0,0.00025753,2]
[341647309,1731058248986,-894.65,0.00025753,2]
[341647310,1731058248996,-500.0,0.00025753,2]
[341647311,1731058249005,-2111.02,0.00025753,2]
[341647312,1731058249014,-714.74,0.00025753,2]
[341647313,1731058249023,-6939.05,0.00025753,2]
[341647314,1731058249032,-662.8,0.00025753,2]
[341647315,1731058249042,-500.0,0.00025753,2]
[341647316,1731058249051,-500.0,0.00025753,2]
[341647317,1731058249060,-617.82,0.00025753,2]
[341647318,1731058249069,-2356.99,0.00025753,2]
[341647319,1731058249078,-153.371672,0.00025753,7]
[341647320,1731058249088,-500.0,0.00025753,2]
[341647321,1731058249098,-151.0,0.00025753,7]
[341647322,1731058249107,-500.0,0.00025753,2]
[341647323,1731058249117,-601.105262,0.00025753,7]
[341647324,1731058249127,-601.105262,0.00025753,7]
[341647325,1731058249137,-151.0,0.00025753,7]
[341647326,1731058249146,-804.9,0.00025753,2]
[341647327,1731058249155,-164.759283,0.00025753,7]
[341647328,1731058249165,-416.907265,0.00025753,7]
[341647329,1731058249174,-3210.27,0.00025753,2]
[341647330,1731058249185,-416.907265,0.00025753,7]
[341647331,1731058249193,-164.759283,0.00025753,7]
[341647332,1731058249203,-151.0,0.00025753,7]
[341647333,1731058249213,-3186.19,0.00025753,2]
[341647334,1731058249222,-1341.521516,0.00025753,7]
[341647335,1731058249231,-1341.521516,0.00025753,7]
[341647336,1731058249240,-151.0,0.00025755,4]
[341647337,1731058249250,-150.0,0.000258,2]
[341647338,1731058249259,-2541.49719164,0.00025873,2]
[341647339,1731058249269,-600.0,0.00025899,2]
[341647340,1731058249278,-500.0,0.00026,2]
[341647341,1731058249287,-520.03,0.00026,2]
[341647342,1731058249297,-331.038958,0.00026019,2]
[341647343,1731058249306,-224.279347,0.00026019,2]
[341647344,1731058249315,-207.267967,0.00026019,2]
[341647345,1731058249324,-500.0,0.00026026,2]
[341647346,1731058249333,-500.0,0.00026026,2]
[341647347,1731058249342,-500.0,0.00026026,2]
[341647348,1731058249352,-500.0,0.00026026,2]
[341647349,1731058249361,-500.0,0.00026026,2]
[341647350,1731058249370,-500.0,0.00026026,2]
[341647351,1731058249381,-500.0,0.00026026,2]
[341647352,1731058249390,-500.0,0.00026026,2]
[341647353,1731058249399,-524.93234747,0.00026026,2]
[341647354,1731058249408,-500.0,0.00026026,2]
[341647355,1731058249418,-174.73132111,0.00026026,2]
[341647356,1731058249427,-500.0,0.00026026,2]
[341647357,1731058249437,-500.0,0.00026026,2]
[341647358,1731058249446,-500.0,0.00026026,2]
[341647359,1731058249456,-672.7,0.00026026,2]
[341647360,1731058249466,-500.0,0.00026026,2]
[341647361,1731058249475,-500.0,0.00026026,2]
[341647362,1731058249484,-500.0,0.00026026,2]
[341647363,1731058249493,-500.0,0.00026026,2]
[341647364,1731058249503,-500.0,0.00026026,2]
[341647365,1731058249512,-500.0,0.00026026,2]
[341647366,1731058249521,-500.0,0.00026026,2]
[341647367,1731058249531,-384.73060009,0.00026026,2]
[341647368,1731058249540,-500.0,0.00026026,2]
[341647369,1731058249549,-500.0,0.00026026,2]
[341647370,1731058249559,-500.0,0.00026026,2]
[341647371,1731058249569,-1009.33,0.00026027,2]
[341647372,1731058249578,-500.0,0.00026027,2]
[341647373,1731058249587,-500.0,0.00026027,2]
[341647374,1731058249597,-894.65,0.00026027,2]
[341647375,1731058249607,-500.0,0.00026027,2]
[341647376,1731058249616,-2111.02,0.00026027,2]
[341647377,1731058249625,-714.74,0.00026027,2]
[341647378,1731058249634,-6939.05,0.00026027,2]
[341647379,1731058249643,-662.8,0.00026027,2]
[341647380,1731058249653,-500.0,0.00026027,2]
[341647381,1731058249666,-500.0,0.00026027,2]
[341647382,1731058249675,-617.82,0.00026027,2]